Cogmind - Beta 10 @@@ ROGUE MODE // 2020.09.17 @ 22:24:46 Player: adz Result: Destroyed by G-34 Mercenary with Small Laser Performance ------------- Evolutions (1) 500 Regions Visited (2) 400 Robots Destroyed (43) 215 Value Destroyed (879) 879 Prototype IDs (0) 0 Alien Tech Used (0) 0 Bonus (24) 24 TOTAL SCORE: 2018 Bonus ------- High Alert Combat Kills 24 Cogmind --------- Core Integrity 0/400 Matter 450/450 Energy 500/525 System Corruption 0% Temperature Cool (6) Movement Core (450) Ox8 Location -9/Materials Parts ------- > --- POWER (1) -------- Light Ion Engine > --- PROPULSION (2) --- (None) > --- UTILITY (3) ------ Large Storage Unit High-capacity Battery Large Matter Pod > --- WEAPON (3) ------- (None) > --- INVENTORY (10) --- Light Ion Engine Light Ion Engine Light Ion Engine Heat Sink Small Storage Unit Improved Signal Interpreter Peak State ------------ > --- POWER ------------ Light Ion Engine > --- PROPULSION ------- Aluminum Leg Aluminum Leg > --- UTILITY ---------- Large Storage Unit High-capacity Battery Large Matter Pod > --- WEAPON ----------- Heavy EM Pulse Gun Light EM Pulse Cannon Grenade Launcher > --- INVENTORY -------- Ion Engine Light Ion Engine Light Ion Engine Aluminum Leg Heat Sink Small Storage Unit Improved Signal Interpreter Small Laser Light Assault Rifle [Rating: 12] Favorites ----------- Power Light Ion Engine Engine Light Ion Engine Propulsion Aluminum Leg Treads Light Treads Leg Aluminum Leg Hover Unit Hover Unit Utility Large Storage Unit Device Heat Sink Storage Large Storage Unit Weapon EM Pulse Gun Energy Gun EM Pulse Gun Energy Cannon Light EM Pulse Cannon Ballistic Gun Light Assault Rifle Launcher Grenade Launcher Build | -11 -10 -9 ------- Run | Scr Mat Mat Slots Evolved 2 | . . 2 Power . | . . . Propulsion . | . . . Utility 1 | . . 1 Weapon 1 | . . 1 Parts Attached 57 | 7 29 21 Power 11 | 1 5 5 Engine 11 | 1 5 5 Core . | . . . Reactor . | . . . Propulsion 15 | 3 9 3 Treads 2 | 2 . . Leg 12 | 1 8 3 Wheel . | . . . Hover 1 | . 1 . Flight . | . . . Utility 6 | 1 3 2 Device 2 | . 1 1 Storage 4 | 1 2 1 Processor . | . . . Hackware . | . . . Protection . | . . . Artifact . | . . . Weapon 25 | 2 12 11 Energy Gun 12 | 1 4 7 Energy Cannon 6 | . 6 . Ballistic Gun 2 | 1 . 1 Ballistic Cannon . | . . . Launcher 5 | . 2 3 Special Weapon . | . . . Impact Weapon . | . . . Slashing Weapon . | . . . Piercing Weapon . | . . . Special Melee Weapon . | . . . Unidentified Prototypes . | . . . Parts Lost 12 | . 3 9 Power 1 | . . 1 Propulsion 2 | . . 2 Utility . | . . . Weapon 9 | . 3 6 Highest Loss Streak 4 | . 2 4 Average Slot Usage (%) 92 | . 96 84 Engine 12 | . 14 10 Treads 1 | . 2 . Leg 22 | . 25 18 Device 1 | . 1 1 Storage 26 | . 23 30 Energy Gun 14 | . 15 13 Energy Cannon 9 | . 11 7 Ballistic Gun 1 | . 1 1 Naked Turns . | . . . Heaviest Build 36 | 12 33 36 Greatest Support 20 | 20 20 20 Greatest Overweight (x) 9 | . 4 9 Average Overweight (x) . | . . 1 Largest Inventory Capacity 10 | 6 10 10 Average Capacity 8 | 5 8 10 Most Carried 10 | 4 10 10 Average Carried 7 | 2 8 7 Final Capacity 10 | 6 10 10 Final Carried 9 | 3 9 6 Class Distribution -------------------- 78% | Mutant 16% | Gunner 4% | Scavenger-Gunner Dominant Class ---------------- Mutant | -10/Materials Gunner | -9/Materials Resources | -11 -10 -9 ----------- Run | Scr Mat Mat Matter Collected 989 | 206 539 244 Remotely . | . . . Salvage Created 1140 | . 755 385 Parts 79 | . 44 35 Haulers Intercepted 1 | . 1 . Recyclers Shooed . | . . . Parts Field Recycled . | . . . Retrieved Matter . | . . . Parts Self-Destructed . | . . . Prevented . | . . . Kills | -11 -10 -9 ------- Run | Scr Mat Mat Combat Hostiles Destroyed 34 | . 16 18 Guns 14 | . 6 8 Cannons 4 | . 2 2 AOE 15 | . 7 8 Classes Destroyed 7 | . 6 1 Worker 1 | . 1 . Builder 3 | . 2 1 Hauler 1 | . 1 . Operator 1 | . . 1 Watcher 3 | . 3 . Swarmer 18 | . 6 12 Grunt 16 | . 10 6 Best Kill Streak 5 | . 5 5 Combat Bots Only 5 | . 4 5 Max Kills in Single Turn 3 | . 3 2 Gunslinging . | . . . Exploded 2 | . 2 2 Melee . | . . . Uniques/NPCs Destroyed . | . . . Combat | -11 -10 -9 -------- Run | Scr Mat Mat Damage Taken 1936 | . 738 1198 Core 534 | . 134 400 Absorbed by Shields . | . . . Core Remaining (%) 73 | 100 46 . Volleys Fired 86 | . 43 43 Largest 3 | . 2 3 Hottest 141 | . 112 141 Shots Fired 187 | . 83 104 Gun 115 | . 42 73 Cannon 60 | . 36 24 Launcher 12 | . 5 7 Special . | . . . Kinetic 18 | . . 18 Thermal 42 | . 15 27 Explosive 12 | . 5 7 Electromagnetic 115 | . 63 52 Robot Hit Streak 10 | . 10 5 Robot Miss Streak 4 | . 2 4 Penetration Max . | . . . Secondary Targets 2 | . 1 1 Max Gunslinging Chain 1 | . 1 1 Shots Hit Robots 97 | . 52 45 Core Hits 60 | . 28 32 Critical Hits . | . . . Critical Kills . | . . . Critical Parts Destroyed . | . . . Melee Attacks . | . . . Impact . | . . . Slashing . | . . . Piercing . | . . . Sneak Attacks . | . . . Combat Hostiles . | . . . Follow-up Attacks . | . . . Damage Inflicted 2443 | . 1361 1082 Guns 733 | . 350 383 Cannons 756 | . 531 225 Explosions 945 | . 480 465 Melee . | . . . Ramming 9 | . . 9 Kinetic 64 | . . 64 Thermal 422 | . 153 269 Explosive 762 | . 433 329 Electromagnetic 1186 | . 775 411 Impact . | . . . Slashing . | . . . Piercing . | . . . Highest Corruption . | . . . Average Corruption . | . . . Corruption Purged . | . . . Overload Shots . | . . . Overflow Damage 68 | . 58 10 Projectiles 28 | . 28 . Explosions 40 | . 30 10 Melee . | . . . Knockbacks . | . . . Impact . | . . . Kinetic . | . . . Secondary . | . . . Self-Inflicted Damage 94 | . 37 57 Shots 4 | . 2 2 Rammed 17 | . . 17 Targets Rammed 17 | . . 17 Kicked . | . . . Crushed . | . . . Highest Temperature 361 | . 277 361 Average Temperature 84 | . 83 86 Received Heat Transfer 765 | . 369 396 Effects 2 | . . 2 Shutdowns 1 | . . 1 Interference 1 | . . 1 Siege Activations . | . . . Robots Corrupted 1 | . 1 . Combat Hostiles 1 | . 1 . Parts Fried 4 | . 4 . Impact Corruptions . | . . . Robots Melted . | . . . Combat Hostiles . | . . . Parts Melted 1 | . . 1 Heat Transferred 846 | . 346 500 Parts Sabotaged . | . . . Parts Stolen . | . . . Parts Stripped . | . . . Power Chain Reactions 3 | . 1 2 Missiles Intercepted . | . . . Alert | -11 -10 -9 ------- Run | Scr Mat Mat Peak Influence 484 | . 242 484 Initial 90 | . . 90 Average 147 | . 94 296 Maximum Alert Level 2 | . 1 2 Low Security (%) 68 | 100 94 9 Level 1 25 | . 5 71 Level 2 6 | . . 19 Level 3 . | . . . Level 4 . | . . . Level 5 . | . . . High Security . | . . . Max Security . | . . . Squads Dispatched 6 | . 3 3 Investigation 3 | . 2 1 Extermination . | . . . Reinforcement 3 | . 1 2 Assault . | . . . Garrison . | . . . Intercept . | . . . Construction Impeded . | . . . Haulers Reinforced . | . . . Stealth | -11 -10 -9 --------- Run | Scr Mat Mat Distress Signals 3 | . 1 2 Communications Jammed . | . . . Distress Signals . | . . . Times Spotted 54 | . 27 27 Peak Tracking Total 5 | . 5 5 Tactical Retreats 7 | . 3 4 Traps | -11 -10 -9 ------- Run | Scr Mat Mat Traps Triggered . | . . . Indirectly . | . . . Trap Hack Attempts . | . . . Triggered . | . . . Disarmed . | . . . Reprogrammed 3 | . 3 . Reused 1 | . 1 . Traps Extracted . | . . . Installed . | . . . Triggered 1 | . 1 . Machines | -11 -10 -9 ---------- Run | Scr Mat Mat Machines Disabled 6 | . 3 3 Max in Single Turn 2 | . 1 2 Machines Sabotaged . | . . . Garrisons Compromised . | . . . Overloaded Fab Kills . | . . . Fab Network Shutdowns . | . . . Hacking | -11 -10 -9 --------- Run | Scr Mat Mat Machines Accessed 6 | . 5 1 Terminals 4 | . 4 . Fabricators . | . . . Repair Stations 2 | . 1 1 Recycling Units . | . . . Scanalyzers . | . . . Garrison Access . | . . . Total Hacks 27 | . 20 7 Successful 21 | . 14 7 Failed 6 | . 6 . Catastrophic 3 | . 3 . Database Lockouts . | . . . Manual . | . . . Terminals 15 | . 15 . Fabricators . | . . . Repair Stations 12 | . 5 7 Recycling Units . | . . . Scanalyzers . | . . . Garrison Access . | . . . Terminal Hacks 10 | . 10 . Record 4 | . 4 . Level Access Points 1 | . 1 . Locate Traps 1 | . 1 . Reprogram Traps 1 | . 1 . Reinforcement Status 1 | . 1 . Registered Components 1 | . 1 . Zone Layout 1 | . 1 . Fabricator Hacks . | . . . Repair Station Hacks 11 | . 4 7 Scan Component 6 | . 2 4 Repair 4 | . 1 3 Refit 1 | . 1 . Recycling Unit Hacks . | . . . Scanalyzer . | . . . Garrison Access Hacks . | . . . Unauthorized Hacks . | . . . Terminals . | . . . Fabricators . | . . . Repair Stations . | . . . Recycling Units . | . . . Scanalyzers . | . . . Garrison Access . | . . . Data Cores Recovered . | . . . Used . | . . . Hacking Detections 6 | . 5 1 Full Trace Events 4 | . 3 1 Feedback Events . | . . . Feedback Blocked . | . . . Robot Schematics Acquired . | . . . Robots Built . | . . . Matter . | . . . Time . | . . . Total Robot Build Rating . | . . . Part Schematics Acquired . | . . . Parts Built . | . . . Matter . | . . . Time . | . . . Total Part Build Rating . | . . . Parts Repaired 4 | . 1 3 Time 116 | . 32 84 Parts Recycled . | . . . Recycled Matter . | . . . Retrieved Matter . | . . . Retrieved Components . | . . . Parts Scanalyzed . | . . . Part Schematics Acquired . | . . . Parts Damaged . | . . . Bothacking | -11 -10 -9 ------------ Run | Scr Mat Mat Used RIF Installer . | . . . Robots Hacked . | . . . Non-combat . | . . . Combat . | . . . Robot Hacks Applied . | . . . Relay Couplers Released . | . . . Robots Rewired . | . . . Allies Hacked . | . . . Hacks Repelled . | . . . Allies | -11 -10 -9 -------- Run | Scr Mat Mat Total Allies . | . . . Largest Group . | . . . Highest-Rated Group . | . . . Highest-Rated Ally . | . . . Total Orders . | . . . Ally Attacks . | . . . Total Damage . | . . . Kills . | . . . Allies Corrupted . | . . . Allies Melted . | . . . Intel | -11 -10 -9 ------- Run | Scr Mat Mat Robot Analysis Total . | . . . Derelict Logs Recovered . | . . . Drone Launches . | . . . Drone Recoveries . | . . . Exploration | -11 -10 -9 ------------- Run | Scr Mat Mat Turns Passed 2080 | 231 1190 659 Spaces Moved 1071 | 146 655 270 Core 17 | 9 1 7 Treads 245 | 120 125 . Legs 809 | 17 529 263 Wheels . | . . . Hover . | . . . Flight . | . . . Fastest Speed 50 | 50 120 150 Average Speed 153 | 148 151 159 Slowest Speed 500 | 160 250 500 Overloaded Moves . | . . . Propulsion Burnouts . | . . . Robots Hopped . | . . . Cave-ins Triggered . | . . . Exploration Rate (%) 31 | 9 69 15 Regions Visited 2 Branch Regions . Pre-discovered Areas . | . . . Known Exits Taken 1 | . 1 . Unknown Exits Taken 1 | 1 . . Scrap Searched . | . . . Spaces Dug . | . . . Terrain Destroyed 59 | . 24 35 Melee . | . . . Projectile . | . . . AOE 59 | . 24 35 Terrain Rammed . | . . . Walls Destroyed . | . . . Machines Disabled . | . . . Actions | -11 -10 -9 --------- Run | Scr Mat Mat Total 1303 | 158 781 364 Wait . | . . . Move 1069 | 145 654 270 Hop . | . . . Pick Up 36 | 4 24 8 Fast Attach 11 | 6 5 . Attach 16 | 1 6 9 Detach 6 | 1 5 . Swap 30 | . 18 12 Drop 32 | 1 26 5 Fire 86 | . 43 43 Melee . | . . . Ram 17 | . . 17 Kick . | . . . Crush . | . . . Escape Stasis . | . . . Rewire . | . . . Trap . | . . . Miscellaneous . | . . . Route ------- -11/Scrapyard -10/Materials (discovered 5 exits: *Mat x3 / [*Min x2]) -9/Materials History --------- Turn | Location | Event 6 | -11/Scrapyard | Discovered new exit (range 15) 232 | -11/Scrapyard | Entered Materials 318 | -10/Materials | Build established: Mutant 659 | -10/Materials | Discovered new exit (range 14) 675 | -10/Materials | Discovered new exit (range 16) 705 | -10/Materials | Discovered new exit (range 14) 756 | -10/Materials | Identified exit to Materials 1207 | -10/Materials | Repaired Lgt. EM Pulse Cannon? 1279 | -10/Materials | Core integrity fell below 50% 1422 | -10/Materials | Entered another Materials area 1422 | -9/Materials | Evolved 2 slots: Utility x1, Weapon x1 1511 | -9/Materials | Repaired Grenade Launcher 1511 | -9/Materials | Repaired Heat Sink 1543 | -9/Materials | Repaired Hvy. EM Pulse Gun 1889 | -9/Materials | Build established: Gunner 1892 | -9/Materials | Lost 3 parts (3w) 2008 | -9/Materials | Lost 4 parts (2n2w) 2032 | -9/Materials | Core integrity fell below 50% 2064 | -9/Materials | Core integrity fell below 20% 2081 | -9/Materials | Destroyed by G-34 Mercenary with Small Laser Last Messages --------------- U-05 Engineer lays Concrete. K-01 Serf collects debris. U-05 Engineer lays Concrete. U-05 Engineer builds a Door. U-05 Engineer builds a Wall. Acquired 12 matter. Sml. Laser destroyed. U-05 Engineer lays Concrete. Aluminum Leg destroyed. Destroyed Sml. Laser. Lgt. Assault Rifle destroyed. U-05 Engineer lays Concrete. Aluminum Leg destroyed. Acquired 7 matter. Slammed into G-34 Mercenary. Ion Engine destroyed. Slammed into G-34 Mercenary. Acquired 4 matter. Slammed into G-34 Mercenary. Acquired 1 matter. Map ----- +----------------------------------------------------+ | | | | | ?????????????????????????????????????????????????? | | ?????????????????????????????????????????????????? | | ?????????????????????????????????????????????????? | | #####????????????????????????????????????????????? | | #?????????????########????????? ?????????????? | | #???########### #???????? ??????????????? | | #???# + #??????? ???????????????? | | ##+###### ######### #??####+#########???????? | | """ ## #???????# #??# +???????? | | "" "R" ## #???????#! #??# #???????? | | "" " " ## #???????# #### #???????? | | "" ## #############+##### + ??????? | | [ ## % #???????? | | ## % ######/### #???????? | | ## # #?????????????? | | + % #""" #?????????????? | | ###### # #""" #?????????????? | | ?????#### #?"" #?????????????? | | ????????# #? #?????????????? | | ????????####### %#?"" #?????????????? | | ??????????##### %%%#? " #?????????????? | | ??????????????# %%%# " ???????????????? | | ??????????????# " %% # ?????????????????? | | ??????????????# "T g@##########?????????????? | | ??????????????# "" %w% #?????????????? | | ??????????????# # """#?????????????? | | ??????????????# # """#?????????????? | | ??????????????#########+### """#?????????????? | | ???????????????????? # + ???????????? | | ???????????????????# # """# "?????????? | | ???????????????????# """ # """#?? "?????????? | | ???????????????????# """ # """#?????????????? | | ???????????????????# """ # #?????????????? | | ???????????????????# ##########?????????????? | | ???????????????????########??????????????????????? | | ?????????????????????????????????????????????????? | | ?????????????????????????????????????????????????? | | ?????????????????????????????????????????????????? | | ?????????????????????????????????????????????????? | | ?????????????????????????????????????????????????? | | ?????????????????????????????????????????????????? | | ?????????????????????????????????????????????????? | | ?????????????????????????????????????????????????? | | ?????????????????????????????????????????????????? | | ?????????????????????????????????????????????????? | | ?????????????????????????????????????????????????? | | ?????????????????????????????????????????????????? | | ?????????????????????????????????????????????????? | +----------------------------------------------------+ Best States ------------- Heat Dissipation 38 Energy Generation 10 Energy Capacity 650 Matter Stores 450 Matter Capacity 450 Sight Range 16 Terrain Scan Density 10 Evasion (%) 50 Recoil Reduction 1 Item Schematics ----------------- None Robot Schematics ------------------ None Fabricated ------------ Nothing Alien Tech Used ----------------- None Achievements -------------- Loot Pinata Power Corrupts Challenges ------------ None Game ------ Seed AssemblyLegClaws Manual? 0 Play Time 01:02:44 Cumulative 3.1 hours Start 2020.09.17 @ 02:06:12 End 2020.09.17 @ 22:24:46 Sessions 4 Manual Loads 0 Difficulty Rogue Special Mode None Game No. 4 Rogue 4 Adventurer 0 Explorer 0 Win Type - Total 0 Types 0/0/0/0/0/0/0/0/0 Lore% 1 Gallery% 3 Achievement% 2 Wizard Run 0 Options --------- ASCII 1 Keyboard 0 Movement Vi Keybinds 0 Fullscreen 2 Font 24/Proggy Map View 76x50 Tactical HUD 0 Map Filters NONE Filters NONE Steam 1 RUN: 0bffdfb1-6370-4443-96ff-188749f42c2f